bitfinex-derivatives/quotes_SOLF0:USTF0_20250808
["timestamp","ask_amount","ask_price","bid_price","bid_amount"]
[1754654526612,5.22712932,177.81,177.8,8.8426]
[1754654526915,5.22712932,177.81,177.8,3.22]
[1754654532121,3.07,177.8,177.79,3.01]
[1754654532319,5.07712932,177.8,177.79,3.01]
[1754654532819,5.07712932,177.8,177.79,8.6329]
[1754654534318,2.00712932,177.8,177.79,8.6329]
[1754654534618,2.04961055,177.82,177.81,8.6323]
[1754654536619,0.04248123,177.82,177.81,8.6323]
[1754654537420,3.13447905,177.89,177.87,3.01]
[1754654538422,3.13447905,177.9,177.87,3.01]
[1754654538820,6.20447905,177.9,177.87,3.01]
[1754654539322,6.20447905,177.9,177.88,5.6199]
[1754654539524,6.20447905,177.9,177.89,3.01]
[1754654540924,6.20447905,177.9,177.89,8.6297]
[1754654541622,6.20447905,177.9,177.89,5.6197]
[1754654541823,3.13447905,177.9,177.89,8.6297]
[1754654542324,3.13447905,177.91,177.9,3.01]
[1754654542520,6.20447905,177.91,177.9,3.01]
[1754654543425,6.20447905,177.91,177.9,8.6294]
[1754654543926,6.20447905,177.91,177.9,3.01]
[1754654546026,6.20447905,177.91,177.9,8.6294]
[1754654546729,3.07,177.91,177.9,8.6294]
[1754654546926,6.20447905,177.91,177.9,8.6294]
[1754654547322,6.20447905,177.91,177.9,3.01]
[1754654548732,5.6197,177.89,177.86,0.04128016]
[1754654549027,3.07,177.86,177.83,3.01]
[1754654549226,11.82597905,177.84,177.81,16.53]
[1754654549421,6.20447905,177.82,177.81,16.53]
[1754654549623,6.20447905,177.82,177.81,3.01]
[1754654549928,6.20447905,177.82,177.81,8.6323]
[1754654553524,3.07,177.81,177.8,8.6325]
[1754654553729,6.20447905,177.81,177.8,8.6325]
[1754654555429,3.13447905,177.81,177.8,8.6325]
[1754654557540,6.16447905,177.81,177.8,8.6325]
[1754654559837,3.13447905,177.81,177.8,8.6325]
[1754654561739,6.16447905,177.81,177.8,8.6325]
[1754654563840,3.13447905,177.81,177.8,8.6325]
[1754654564740,6.16447905,177.81,177.8,8.6325]
[1754654570641,6.16447905,177.81,177.79,5.6228]
[1754654570840,8.75707905,177.81,177.76,14.13]
[1754654571047,3.13447905,177.77,177.76,14.13]
[1754654571237,3.13447905,177.77,177.71,10.15]
[1754654571640,3.13447905,177.77,177.72,3.12]
[1754654571840,0.04182936,177.76,177.72,3.12]
[1754654572441,0.04182936,177.76,177.75,8.7442]
[1754654572745,3.07182936,177.76,177.75,8.7442]
[1754654572949,0.04182936,177.76,177.75,8.7442]
[1754654573545,3.07182936,177.76,177.75,8.7442]
[1754654574345,0.04182936,177.76,177.75,8.7442]
[1754654575142,3.07182936,177.76,177.75,8.7442]
[1754654579351,3.07182936,177.76,177.68,3.12]
[1754654579551,6.16447905,177.72,177.68,3.12]
[1754654579751,3.03,177.71,177.68,3.12]
[1754654580253,3.07194976,177.71,177.68,3.12]
[1754654580449,3.07194976,177.71,177.7,8.7457]
[1754654580754,3.13447905,177.77,177.72,3.12]
[1754654580943,6.16447905,177.77,177.72,3.12]
[1754654581455,3.03,177.76,177.72,3.12]
[1754654581654,3.13447905,177.77,177.72,3.12]
[1754654581953,6.16447905,177.77,177.76,8.7439]
[1754654582449,6.16447905,177.77,177.76,5.6239]
[1754654582751,6.16447905,177.77,177.76,8.7439]
[1754654583957,6.16447905,177.77,177.76,5.6239]
[1754654585456,6.16447905,177.77,177.76,8.7439]
[1754654585958,3.13447905,177.77,177.76,8.7439]
[1754654587162,6.39447905,177.77,177.76,8.7439]
[1754654587661,6.39447905,177.77,177.76,5.6239]
[1754654588261,6.39447905,177.77,177.76,8.7339]
[1754654588964,6.39447905,177.77,177.76,3.11]
[1754654591164,6.39447905,177.77,177.74,5.6244]
[1754654591361,3.13447905,177.77,177.75,3.11]
[1754654591566,3.26,177.76,177.75,3.11]
[1754654595266,3.26,177.76,177.75,8.7342]
[1754654595463,3.13447905,177.77,177.76,3.11]
[1754654596268,3.13447905,177.77,177.76,8.7338]
[1754654596667,3.26,177.81,177.76,3.11]
[1754654596969,2.00691171,177.79,177.78,8.7332]
[1754654598671,3.13550612,177.81,177.78,8.7332]
[1754654598873,3.13550612,177.81,177.79,3.11]
[1754654599171,6.39550612,177.81,177.79,3.11]
[1754654599572,12.01790612,177.81,177.79,3.11]
[1754654600073,3.26,177.8,177.79,3.11]
[1754654601674,3.13550612,177.84,177.78,3.11]
[1754654602268,6.39550612,177.86,177.78,3.11]
[1754654602468,6.39550612,177.86,177.8,3.11]
[1754654602766,12.01620612,177.86,177.83,5.6215]
[1754654602973,12.01620612,177.86,177.84,3.11]
[1754654603169,8.8812,177.85,177.81,5.622]
[1754654603377,3.26,177.84,177.77,3.13550612]
[1754654603573,3.26,177.84,177.83,0.03954528]
[1754654603774,3.26,177.84,177.83,3.14954528]
[1754654603975,3.26,177.84,177.83,3.11]
[1754654604177,8.8813,177.84,177.83,3.11]
[1754654604371,12.01680612,177.84,177.83,3.11]
[1754654604776,6.39550612,177.84,177.83,3.11]
[1754654605378,3.26,177.83,177.82,3.15000028]
[1754654606578,3.26,177.83,177.82,8.77190028]
[1754654608276,3.26,177.83,177.82,3.15000028]
[1754654610281,3.13550612,177.84,177.82,3.15000028]
[1754654610779,6.39550612,177.84,177.83,3.11]
[1754654614680,8.8807,177.86,177.83,5.6215]
[1754654614886,3.13550612,177.86,177.84,3.11]
[1754654615683,3.13550612,177.86,177.85,3.11]
[1754654616585,6.17550612,177.86,177.85,3.11]
[1754654616986,11.79610612,177.86,177.85,3.11]
[1754654621491,6.17550612,177.86,177.85,3.11]
[1754654621784,6.17550612,177.88,177.85,3.11]
[1754654622186,6.17550612,177.88,177.86,5.6203]
[1754654622388,6.17550612,177.88,177.87,3.06]
[1754654622584,3.13550612,177.88,177.87,3.06]
[1754654622786,2.00494107,177.88,177.87,8.68]
[1754654623588,5.04494107,177.88,177.87,8.68]
[1754654624688,6.17290984,177.88,177.87,8.68]
[1754654625791,3.13290984,177.88,177.87,8.68]
[1754654626791,3.13290984,177.88,177.87,3.06]
[1754654627089,6.17290984,177.88,177.87,3.06]
[1754654627281,3.04,177.87,177.86,3.06]
[1754654628093,3.04,177.87,177.86,8.6806]
[1754654629293,6.17290984,177.88,177.86,3.06]
[1754654629684,3.13290984,177.88,177.86,3.06]
[1754654630297,3.13290984,177.88,177.87,8.6803]
[1754654631096,11.79290984,177.88,177.87,3.06]
[1754654632398,8.75290984,177.88,177.85,5.65705176]
[1754654632597,6.17290984,177.86,177.85,8.71705176]
[1754654633097,11.79350984,177.86,177.85,3.09625176]
[1754654633300,11.79350984,177.86,177.85,0.03625176]
[1754654637996,11.79350984,177.86,177.85,3.09625176]
[1754654639196,11.79350984,177.86,177.85,0.03625176]
[1754654639397,3.04,177.84,177.82,3.06]
[1754654639600,6.17290984,177.84,177.82,3.06]
[1754654640202,6.17290984,177.84,177.82,8.6816]
[1754654640402,6.17290984,177.84,177.83,3.06]
[1754654641100,11.79410984,177.84,177.83,3.06]
[1754654641597,5.6225,177.8,177.77,5.6231]
[1754654641799,6.17290984,177.79,177.78,3.06]
[1754654642300,3.13290984,177.79,177.78,3.06]
[1754654642601,3.13290984,177.79,177.78,8.6831]
[1754654643903,3.13290984,177.79,177.78,3.06]
[1754654648507,3.13290984,177.79,177.78,8.6831]
[1754654649705,3.13290984,177.79,177.78,3.06]
[1754654650004,6.28290984,177.79,177.78,3.06]
[1754654650605,3.13290984,177.79,177.78,3.06]
[1754654652303,6.28290984,177.79,177.78,3.06]
[1754654652906,3.15,177.78,177.77,5.6233]
[1754654653208,8.75570984,177.79,177.77,8.8933]
[1754654653408,6.28290984,177.79,177.78,3.27]
[1754654654710,5.15726965,177.79,177.78,3.27]
[1754654657412,2.00726965,177.79,177.78,8.8931]
[1754654658011,2.04282016,177.8,177.78,3.27]
[1754654658413,2.00726965,177.79,177.78,8.8931]
[1754654658712,0.03555051,177.8,177.79,3.27]
[1754654659108,3.13533073,177.81,177.8,5.6225]
[1754654659313,3.13533073,177.81,177.8,8.8925]
[1754654661017,0.03646135,177.82,177.81,8.8922]
[1754654661411,6.28533073,177.83,177.82,3.27]
[1754654661917,11.90683073,177.83,177.82,3.27]
[1754654666520,3.15,177.82,177.77,3.27]
[1754654666722,3.15,177.79,177.77,3.27]
[1754654668022,3.15,177.79,177.78,5.6231]
[1754654668221,3.15,177.79,177.78,8.8931]
[1754654668423,11.9436064,177.8,177.78,5.6231]
[1754654668627,11.9436064,177.8,177.79,3.27]
[1754654669414,10.0,177.83,177.79,3.27]
[1754654669618,3.15,177.85,177.79,3.27]
[1754654669822,6.28533073,177.84,177.79,3.27]
[1754654670021,11.90663073,177.84,177.79,3.27]
[1754654670421,6.28533073,177.84,177.79,3.27]
[1754654670725,6.28533073,177.84,177.8,0.0432115]
[1754654670921,6.28533073,177.84,177.82,5.6218]
[1754654671121,6.28533073,177.84,177.81,3.27]
[1754654672027,6.28533073,177.84,177.83,8.8915]
[1754654672231,6.28533073,177.84,177.83,3.27]
[1754654673325,11.90653073,177.84,177.83,3.27]
[1754654676531,6.28533073,177.84,177.83,3.27]
[1754654678825,6.28533073,177.84,177.83,8.8915]
[1754654679226,6.28533073,177.84,177.83,3.27]
[1754654682238,11.90653073,177.84,177.83,3.27]
[1754654682638,10.77744777,177.84,177.83,3.27]
[1754654690340,8.8618,177.82,177.8,0.0432115]
[1754654690542,2.00624777,177.81,177.8,0.0432115]
[1754654690937,10.86824777,177.81,177.8,3.2532115]
[1754654691132,10.86824777,177.81,177.8,0.0432115]
[1754654691336,10.86824777,177.81,177.78,3.21]
[1754654691337,3.24,177.8,177.78,3.21]
[1754654691539,10.86894777,177.79,177.78,3.21]
[1754654692644,11.99924391,177.79,177.78,3.21]
[1754654693146,3.13654391,177.79,177.78,3.21]
[1754654694051,8.75924391,177.79,177.78,3.21]
[1754654695944,11.99924391,177.79,177.78,3.21]
[1754654698245,8.8627,177.79,177.78,3.21]
[1754654698443,11.99924391,177.79,177.78,3.21]
[1754654703351,3.24,177.77,177.69,378.3]
[1754654703554,3.13654391,177.76,177.7,5.90515888]
[1754654703747,6.37654391,177.76,177.72,5.6246]
[1754654703948,12.00034391,177.76,177.73,3.21]
[1754654704147,0.03844317,177.74,177.73,3.21]
[1754654705255,0.03844317,177.74,177.73,8.8346]
[1754654709648,0.03844317,177.74,177.73,3.21]
[1754654710355,0.03844317,177.74,177.73,8.8346]
[1754654712662,2.04636206,177.74,177.73,8.8346]
[1754654714856,2.04636206,177.74,177.73,3.21]
[1754654715055,5.27636206,177.74,177.73,3.21]
[1754654716860,5.27636206,177.74,177.73,8.8346]
[1754654717255,2.04636206,177.74,177.73,8.8346]
[1754654717455,5.27636206,177.74,177.73,8.8346]
[1754654717660,5.27636206,177.74,177.73,3.21]
[1754654718262,5.27636206,177.74,177.73,8.8346]
[1754654718652,2.04636206,177.74,177.73,8.8346]
[1754654724862,2.04636206,177.74,177.69,8.15]
[1754654725071,2.00791889,177.73,177.7,3.21]
[1754654726066,2.00791889,177.73,177.71,5.6252]
[1754654726269,2.00791889,177.73,177.72,3.21]
[1754654726965,2.00791889,177.73,177.72,8.8349]
[1754654729465,5.23791889,177.73,177.72,8.8349]
[1754654729657,5.23791889,177.73,177.72,3.21]
[1754654730168,3.23,177.72,177.69,8.15]
[1754654730373,3.23,177.71,177.7,3.21]
[1754654730668,8.8552,177.71,177.7,3.21]
[1754654731567,10.86311889,177.71,177.7,3.21]
[1754654732761,3.23,177.69,177.68,102.26]
[1754654732962,5.23791889,177.69,177.68,3.21]
[1754654735368,5.23791889,177.69,177.68,8.8361]
[1754654742068,5.23791889,177.69,177.68,3.21]
[1754654742371,3.24,177.68,177.67,3.25]
[1754654742561,5.24791889,177.68,177.67,3.25]
[1754654742772,5.24791889,177.68,177.67,8.8761]
[1754654743077,3.24,177.67,177.65,3.25]
[1754654743273,2.00791889,177.66,177.65,3.25]
[1754654743473,2.00791889,177.66,177.65,8.877]
[1754654744475,5.24791889,177.66,177.65,8.877]
[1754654744966,2.00791889,177.66,177.63,12.27]
[1754654745171,2.00791889,177.64,177.63,12.27]
[1754654745473,5.24791889,177.64,177.63,12.27]
[1754654745679,5.24791889,177.64,177.63,17.8974]
[1754654746370,5.24791889,177.64,177.63,12.27]
[1754654746571,5.24791889,177.64,177.63,9.02]
[1754654746771,10.87531889,177.64,177.59,3.25]
[1754654747083,3.24,177.59,177.58,8.8791]
[1754654747377,5.24791889,177.59,177.58,8.8791]
[1754654747576,5.24791889,177.59,177.58,3.25]
[1754654748278,3.24,177.58,177.57,8.8794]
[1754654748677,2.00791889,177.59,177.58,8.879]
[1754654748877,2.04845346,177.6,177.55,3.25]
[1754654749278,2.04845346,177.6,177.59,8.8786]
[1754654750187,3.457e-05,177.6,177.59,8.8786]
[1754654760688,3.24,177.69,177.59,3.25]
[1754654760889,3.24,177.69,177.64,3.25]
[1754654761090,3.24,177.69,177.67,5.626]
[1754654767401,3.24,177.69,177.66,8.93265792]
[1754654768501,3.24,177.69,177.66,5.66265792]
[1754654768800,3.24,177.69,177.67,3.27]
[1754654771204,3.24,177.69,177.66,5.66265792]
[1754654771205,3.14083054,177.68,177.66,0.03635792]
[1754654771403,2.99,177.67,177.66,0.03635792]
[1754654772204,2.99,177.67,177.66,3.30635792]
[1754654774202,8.6161,177.67,177.66,3.30635792]
[1754654774897,2.99,177.67,177.66,3.30635792]
[1754654776094,2.99,177.67,177.66,0.03635792]
[1754654776506,2.99,177.67,177.66,3.30635792]
[1754654780706,4.99956198,177.67,177.66,3.30635792]
[1754654781109,10.62566198,177.67,177.66,3.30635792]
[1754654782309,10.62566198,177.67,177.66,0.03635792]
[1754654782706,4.99956198,177.67,177.66,3.30635792]
[1754654782903,2.00956198,177.67,177.66,3.30635792]
[1754654783611,5.6256,177.69,177.66,3.30635792]
[1754654783612,2.00956198,177.69,177.66,3.30635792]
[1754654784109,2.00956198,177.7,177.69,3.27]
[1754654785214,2.00956198,177.7,177.69,8.8955]
[1754654785410,2.00956198,177.7,177.69,3.27]
[1754654785611,4.99956198,177.7,177.69,3.27]
[1754654786616,2.99,177.7,177.69,3.27]
[1754654790315,6.1284587,177.7,177.68,3.27]
[1754654790516,2.99,177.69,177.68,3.27]
[1754654792220,2.99,177.69,177.68,8.8956]
[1754654796615,8.7637587,177.7,177.68,5.6256]
[1754654796822,3.28,177.67,177.65,101.32635792]
[1754654797120,3.28,177.66,177.58,3.1384587]
[1754654797320,3.28,177.64,177.61,107.9079]
[1754654797521,3.1384587,177.63,177.61,102.28]
[1754654797718,3.28,177.62,177.61,102.28]
[1754654797924,3.28,177.62,177.61,107.908]
[1754654798228,3.28,177.62,177.61,102.28]
[1754654798725,6.46095478,177.63,177.61,102.28]
[1754654798921,6.46095478,177.63,177.62,2.99]
[1754654799430,6.46095478,177.63,177.62,8.6177]
[1754654803730,6.46095478,177.63,177.59,2.99]
[1754654803928,6.46095478,177.63,177.58,102.36]
[1754654803929,3.28,177.6,177.58,102.36]
[1754654804120,3.28,177.6,177.58,105.35]
[1754654804324,3.28,177.6,177.59,5.6283]
[1754654804630,6.4184587,177.6,177.59,5.6283]
[1754654804833,6.4184587,177.6,177.59,8.6183]
[1754654807230,6.4184587,177.6,177.59,5.6283]
[1754654807429,6.4184587,177.6,177.58,5.6288]
[1754654807627,6.4184587,177.59,177.58,5.6288]
[1754654811239,3.28,177.58,177.57,5.6291]
[1754654812331,3.28,177.58,177.57,8.6191]
[1754654812833,3.28,177.58,177.57,5.6291]
[1754654814139,3.28,177.58,177.57,8.6191]
[1754654816042,3.31562582,177.59,177.58,8.6189]
[1754654818442,8.94452582,177.59,177.56,8.6193]
[1754654818632,3.1384587,177.57,177.56,2.99]
[1754654818837,6.4184587,177.57,177.56,2.99]
[1754654819943,3.28,177.56,177.55,2.99]
[1754654820139,3.1384587,177.57,177.55,2.99]
[1754654820338,213.1384587,177.56,177.41,4.7170559]
[1754654820536,213.1384587,177.56,177.24,15.76382719]
[1754654820537,6.4184587,177.46,177.37,2.99]
[1754654820840,3.1384587,177.41,177.34,2.99]
[1754654821046,3.1384587,177.41,177.37,2.99]
[1754654821441,3.28,177.38,177.29,2.99]
[1754654821750,6.4184587,177.3,177.18,3.1384587]
[1754654822046,3.1384587,177.26,177.19,104.38]
[1754654822247,3.17744832,177.26,177.2,104.38]
[1754654822455,3.17744832,177.26,177.2,110.0209]
[1754654822642,3.17744832,177.26,177.2,104.38]
[1754654822948,0.03898962,177.26,177.2,107.5184587]
[1754654823740,0.03898962,177.26,177.21,2.99]
[1754654823949,0.03898962,177.26,177.22,2.99]
[1754654824248,3.28,177.25,177.19,104.46]
[1754654824444,3.28,177.25,177.21,2.99]
[1754654824651,3.1384587,177.24,177.21,2.99]
[1754654825544,0.04102569,177.25,177.21,2.99]
[1754654825743,0.04102569,177.25,177.22,5.63062798]
[1754654825948,0.04102569,177.25,177.23,2.99]
[1754654826342,0.04102569,177.25,177.24,8.82263296]
[1754654827346,3.29102569,177.25,177.24,8.81358868]
[1754654827543,3.29102569,177.25,177.24,5.61358868]
[1754654828045,3.29102569,177.25,177.24,8.81390327]
[1754654828244,3.29102569,177.25,177.24,5.61390327]
[1754654828643,0.04102569,177.25,177.21,3.2]
[1754654828844,3.1384587,177.23,177.21,3.2]
[1754654829047,3.1384587,177.23,177.22,3.2]
[1754654829343,3.1384587,177.23,177.2,3.2]
[1754654829548,6.3884587,177.21,177.2,3.2]
[1754654829744,6.3884587,177.21,177.19,7.9170559]
[1754654829947,6.3884587,177.21,177.2,3.2]
[1754654830147,6.3884587,177.21,177.19,4.64838486]
[1754654830346,3.1384587,177.21,177.18,3.2]
[1754654830547,3.1384587,177.19,177.18,3.2]
[1754654830850,3.1384587,177.21,177.18,3.2]
[1754654831253,3.1384587,177.19,177.18,3.2]
[1754654831455,0.04169225,177.2,177.18,6.30553087]
[1754654831748,3.29169225,177.2,177.19,6.30553087]
[1754654832347,3.1384587,177.21,177.17,16.84829631]
[1754654832553,3.1384587,177.21,177.2,6.17723907]
[1754654833149,3.1384587,177.21,177.19,6.17723907]
[1754654833356,3.1384587,177.21,177.2,6.17723907]
[1754654833556,6.2769174,177.21,177.15,12.65829631]
[1754654833756,3.1384587,177.16,177.15,3.2]
[1754654834551,3.1384587,177.16,177.11,12.65829631]
[1754654834759,13.1384587,177.21,177.11,9.45829631]
[1754654834760,3.1384587,177.14,177.11,9.45829631]
[1754654835057,3.1384587,177.14,177.13,3.2]
[1754654835253,3.1384587,177.14,177.09,9.45829631]
[1754654835451,3.1384587,177.11,177.09,3.2]
[1754654835854,3.1384587,177.11,177.08,5.6447]
[1754654836052,3.1384587,177.11,177.08,3.2]
[1754654836249,3.1384587,177.11,177.07,3.2]
[1754654836657,10.0,177.17,177.07,3.2]
[1754654836658,3.1384587,177.15,177.07,6.3384587]
[1754654836961,3.1384587,177.19,177.16,5.642]
[1754654837151,3.1384587,177.21,177.12,3.2]
[1754654837352,10.0,177.24,177.14,3.2]
[1754654837659,3.1384587,177.23,177.16,3.2]
[1754654838266,3.1384587,177.25,177.17,3.1384587]
[1754654838464,3.1384587,177.25,177.22,5.6402]
[1754654838665,5.14147542,177.26,177.24,3.2]
[1754654838866,10.0,177.29,177.2,105.52]
[1754654838867,5.14147542,177.28,177.2,105.52]
[1754654839062,5.14147542,177.32,177.28,3.2]
[1754654839266,5.14147542,177.32,177.23,3.2]
[1754654839461,0.03767116,177.26,177.23,3.2]
[1754654839661,5.14147542,177.32,177.23,3.2]
[1754654839968,5.14147542,177.33,177.24,3.2]
[1754654840365,5.14147542,177.28,177.24,3.2]
[1754654840668,5.14147542,177.26,177.25,5.40915675]
[1754654841063,5.14147542,177.26,177.25,8.60958317]
[1754654842866,5.14147542,177.28,177.25,8.60958317]
[1754654843067,5.14147542,177.28,177.26,5.40958317]
[1754654843270,5.14147542,177.28,177.25,3.2]
[1754654843565,5.14147542,177.28,177.25,0.03912625]
[1754654844070,5.639,177.27,177.25,0.03912625]
[1754654844862,5.6391,177.26,177.25,0.03912625]
[1754654845570,5.14147542,177.28,177.25,3.23912625]
[1754654845769,5.14147542,177.28,177.26,3.2]
[1754654846571,5.14147542,177.28,177.25,3.23912625]
[1754654847176,5.6388,177.27,177.25,3.23912625]
[1754654848675,10.77987542,177.28,177.26,3.2]
[1754654848978,5.14147542,177.28,177.26,3.2]
[1754654849667,5.14147542,177.28,177.25,0.03912625]
[1754654849866,5.6387,177.27,177.25,3.23912625]
[1754654850172,5.14147542,177.28,177.25,3.23912625]
[1754654850768,5.6389,177.27,177.25,3.23912625]
[1754654851369,2.5,177.26,177.12,9.41917006]
[1754654851574,5.14147542,177.13,177.03,13.94147542]
[1754654851774,5.14147542,177.11,177.03,8.8]
[1754654851974,5.14147542,177.11,177.1,5.6442]
[1754654852275,5.14147542,177.11,177.03,8.8]
[1754654852677,0.0421787,177.09,177.03,8.8]
[1754654852978,5.14147542,177.1,177.05,0.04233603]
[1754654853480,5.14147542,177.12,177.04,3.2]
[1754654853782,5.14147542,177.12,177.1,3.2]
[1754654853979,5.14147542,177.14,177.11,3.2]
[1754654854173,5.14147542,177.14,177.13,3.2]
[1754654854974,5.14147542,177.16,177.13,3.2]
[1754654855669,5.14147542,177.16,177.12,0.04082858]
[1754654855874,8.17147542,177.16,177.13,3.2]
[1754654856071,8.17147542,177.16,177.14,3.03]
[1754654856279,5.14147542,177.16,177.12,0.04082858]
[1754654856577,8.17147542,177.16,177.12,0.04082858]
[1754654856777,8.17147542,177.16,177.14,3.03]
[1754654860472,8.17147542,177.16,177.14,8.6729]
[1754654860672,5.14147542,177.16,177.13,3.03]
[1754654860874,5.14147542,177.17,177.13,3.03]
[1754654861074,5.14147542,177.17,177.16,3.03]
[1754654863184,5.14147542,177.17,177.16,8.6722]
[1754654863379,5.14147542,177.17,177.16,5.37964576]
[1754654863586,8.17147542,177.17,177.16,5.37964576]
[1754654864283,5.14147542,177.17,177.16,8.40964576]
[1754654864681,5.14147542,177.17,177.16,14.05184576]
[1754654864876,8.17147542,177.17,177.16,8.40964576]
[1754654865084,8.17147542,177.17,177.16,5.37964576]
[1754654865975,3.03,177.16,177.12,3.07082858]
[1754654866179,15.14147542,177.17,177.12,3.07082858]
[1754654866180,5.14147542,177.13,177.12,3.07082858]
[1754654866379,5.14147542,177.14,177.12,0.04082858]
[1754654866585,5.14147542,177.14,177.13,8.673]
[1754654867085,3.03,177.13,177.12,0.04082858]
[1754654867284,3.03,177.12,177.04,3.03]
[1754654867483,5.14147542,177.08,177.04,3.03]
[1754654867780,5.14147542,177.08,177.07,5.6451]
[1754654867981,5.14147542,177.08,177.07,8.6751]
[1754654869591,5.14147542,177.08,177.07,14.97510112]
[1754654870381,5.14147542,177.08,177.07,8.6751]
[1754654871882,5.14147542,177.08,177.07,5.6451]
[1754654872089,5.14147542,177.08,177.07,8.6751]
[1754654873585,5.14147542,177.08,177.07,3.03]
[1754654873982,5.14147542,177.08,177.06,8.6754]
[1754654874186,5.31147542,177.08,177.05,3.03]
[1754654874484,5.14147542,177.06,177.02,9.98]
[1754654874691,5.14147542,177.06,177.05,5.6457]
[1754654876293,5.14147542,177.06,177.05,8.6757]
[1754654876881,8.17147542,177.06,177.05,5.6457]
[1754654877292,8.17147542,177.06,177.05,8.6757]
[1754654877486,8.17147542,177.06,177.05,3.03]
[1754654878189,8.17147542,177.06,177.05,8.6757]
[1754654878791,3.16245846,177.06,177.05,8.6757]
[1754654879090,3.16245846,177.06,177.05,7.8713]
[1754654881383,11.96491692,177.06,176.99,9.75]
[1754654881588,3.03,176.99,176.95,3.03]
[1754654881789,3.16245846,176.98,176.95,3.03]
[1754654881993,3.16245846,177.02,176.95,3.03]
[1754654882496,3.16245846,177.02,177.01,5.647]
[1754654882795,3.16245846,177.02,177.01,8.677]
[1754654883392,0.03591908,177.03,177.02,8.6767]
[1754654883597,3.16245846,177.1,177.02,6.19245846]
[1754654883791,3.16245846,177.12,177.11,5.6438]
[1754654883989,3.16245846,177.12,177.11,8.6738]
[1754654884195,3.16245846,177.12,177.11,3.03]
[1754654884391,16.19245846,177.12,177.01,3.16245846]
[1754654884587,3.16245846,177.09,177.08,3.03]
[1754654884791,8.18115152,177.1,177.08,3.03]
[1754654885295,8.18115152,177.1,177.09,3.03]
[1754654885492,5.15115152,177.12,177.06,3.03]
[1754654886097,10.79465152,177.12,177.08,5.6447]
[1754654886293,3.08,177.11,177.09,3.13]
[1754654886496,8.7239,177.11,177.07,5.645]
[1754654886700,5.15115152,177.08,177.0,3.13]
[1754654887100,5.15115152,177.08,177.07,0.04272381]
[1754654887296,5.15115152,177.08,177.07,3.17272381]
[1754654887497,5.15115152,177.08,177.07,3.13]
[1754654888201,8.23115152,177.1,177.08,3.13]
[1754654888398,8.23115152,177.15,177.07,3.13]
[1754654888603,1628.12,177.36,177.14,5.6426]
[1754654888604,3.08,177.17,177.14,5.6426]
[1754654888802,3.08,177.17,177.15,3.13]
[1754654889000,3.08,177.15,177.13,3.13]
[1754654889301,3.08,177.14,177.13,3.13]
[1754654889699,3.08,177.15,177.13,3.13]
[1754654890099,3.08,177.13,177.12,0.04330537]
[1754654890703,5.15115152,177.14,177.12,0.04330537]
[1754654891007,3.08,177.13,177.12,0.04330537]
[1754654891507,5.15115152,177.14,176.95,3.13]
[1754654891508,3.08,177.12,176.95,3.13]
[1754654891803,5.152e-05,177.0,176.95,3.13]
[1754654892006,5.15115152,177.01,176.95,3.13]
[1754654892307,5.15115152,177.01,177.0,8.7773]
[1754654892605,2.67915152,177.01,177.0,8.7773]
[1754654892907,5.152e-05,177.01,177.0,8.7773]
[1754654893100,4.756e-05,177.02,177.0,3.13]
[1754654893305,5.152e-05,177.02,177.0,3.13]
[1754654893699,5.152e-05,177.02,177.01,5.647]
[1754654893906,10.0,177.1,177.01,3.13]
[1754654894119,5.15115152,177.1,177.01,8.28115152]
[1754654894312,5.15115152,177.1,177.09,5.6445]
[1754654894512,5.15115152,177.1,177.09,8.7745]
[1754654894712,5.15115152,177.12,177.09,3.13]
[1754654894912,5.15115152,177.12,177.1,8.7739]
[1754654895113,5.15115152,177.12,177.11,3.13]